[Event "Late-Titled-Tuesday-Blitz-February-13-2024"]
[Site "Chess.com"]
[Date "2024.02.13"]
[Round "3"]
[White "Dinamo3"]
[Black "ZaphenathPaneah"]
[Result "1-0"]
[WhiteElo "2536"]
[BlackElo "2145"]
[TimeControl "180+1"]
[EndTime "14:28:07 PST"]
[Termination "Dinamo3 won on time"]

1. c4 {[%clk 0:03:00.9]} 1... e6 {[%clk 0:03:00.1]} 2. Nf3 {[%clk 0:02:55.9]}
2... d5 {[%clk 0:03:01]} 3. e3 {[%clk 0:02:56.3]} 3... Nf6 {[%clk 0:03:01.1]} 4.
b3 {[%clk 0:02:56.2]} 4... Be7 {[%clk 0:03:01.7]} 5. Bb2 {[%clk 0:02:56.6]} 5...
O-O {[%clk 0:03:02.5]} 6. Nc3 {[%clk 0:02:56.1]} 6... c6 {[%clk 0:03:02.6]} 7.
d4 {[%clk 0:02:56.3]} 7... Nbd7 {[%clk 0:03:03]} 8. Bd3 {[%clk 0:02:57]} 8...
Re8 {[%clk 0:03:00.6]} 9. O-O {[%clk 0:02:57.6]} 9... Bd6 {[%clk 0:02:57.5]} 10.
e4 {[%clk 0:02:55.4]} 10... dxe4 {[%clk 0:02:57.4]} 11. Nxe4 {[%clk 0:02:56.2]}
11... Nxe4 {[%clk 0:02:58.1]} 12. Bxe4 {[%clk 0:02:57]} 12... Nf6 {[%clk
0:02:57.7]} 13. Bc2 {[%clk 0:02:55.3]} 13... Qe7 {[%clk 0:02:52]} 14. Re1 {[%clk
0:02:49.1]} 14... Ba3 {[%clk 0:02:49]} 15. Bc3 {[%clk 0:02:42.8]} 15... Bb4
{[%clk 0:02:48.8]} 16. Qd2 {[%clk 0:02:43.2]} 16... Bxc3 {[%clk 0:02:48.7]} 17.
Qxc3 {[%clk 0:02:44.1]} 17... b6 {[%clk 0:02:47.4]} 18. Ne5 {[%clk 0:02:32.7]}
18... Bb7 {[%clk 0:02:47.4]} 19. Rad1 {[%clk 0:02:31.1]} 19... Rad8 {[%clk
0:02:46.4]} 20. h3 {[%clk 0:01:44.3]} 20... Qa3 {[%clk 0:02:40.5]} 21. Bb1
{[%clk 0:01:40.3]} 21... c5 {[%clk 0:02:28.1]} 22. dxc5 {[%clk 0:01:36]} 22...
Qxc5 {[%clk 0:02:26.9]} 23. Qg3 {[%clk 0:01:22.3]} 23... h5 {[%clk 0:00:53]} 24.
Qf4 {[%clk 0:01:16]} 24... a5 {[%clk 0:00:43.6]} 25. Qg5 {[%clk 0:00:54.9]}
25... Rxd1 {[%clk 0:00:22.5]} 26. Rxd1 {[%clk 0:00:54]} 26... Be4 {[%clk
0:00:23.1]} 27. Bxe4 {[%clk 0:00:41.8]} 27... Qxf2+ {[%clk 0:00:21.6]} 28. Kxf2
{[%clk 0:00:39]} 28... Nxe4+ {[%clk 0:00:21.7]} 29. Ke3 {[%clk 0:00:39.7]} 29...
Nxg5 {[%clk 0:00:22.6]} 30. Rd6 {[%clk 0:00:30.1]} 30... f6 {[%clk 0:00:20.4]}
31. Nd3 {[%clk 0:00:22.4]} 31... Rb8 {[%clk 0:00:14.1]} 32. h4 {[%clk
0:00:22.5]} 32... Nf7 {[%clk 0:00:13.7]} 33. Rxe6 {[%clk 0:00:23]} 33... Kf8
{[%clk 0:00:13]} 34. a4 {[%clk 0:00:19.7]} 34... Re8 {[%clk 0:00:10.7]} 35.
Rxe8+ {[%clk 0:00:17.6]} 35... Kxe8 {[%clk 0:00:11.6]} 36. Nf4 {[%clk
0:00:18.3]} 36... g5 {[%clk 0:00:04.8]} 37. Nxh5 {[%clk 0:00:17.5]} 37... gxh4
{[%clk 0:00:04.1]} 38. Nxf6+ {[%clk 0:00:17.9]} 38... Ke7 {[%clk 0:00:04.3]} 39.
Nd5+ {[%clk 0:00:18.8]} 39... Kd6 {[%clk 0:00:04.4]} 40. Nxb6 {[%clk 0:00:19.4]}
40... Ne5 {[%clk 0:00:03.7]} 41. Nd5 {[%clk 0:00:17.4]} 41... Kc5 {[%clk
0:00:01.6]} 42. Ke4 {[%clk 0:00:17.2]} 1-0

[Event "Late-Titled-Tuesday-Blitz-February-13-2024"]
[Site "Chess.com"]
[Date "2024.02.13"]
[Round "3"]
[White "KorolDimitriy75"]
[Black "Hilary46"]
[Result "0-1"]
[WhiteElo "2426"]
[BlackElo "2619"]
[TimeControl "180+1"]
[EndTime "14:28:08 PST"]
[Termination "Hilary46 won on time"]

1. d4 {[%clk 0:03:00.9]} 1... d5 {[%clk 0:02:56.6]} 2. c4 {[%clk 0:03:01.1]}
2... e6 {[%clk 0:02:56.9]} 3. Nc3 {[%clk 0:03:01.6]} 3... c6 {[%clk 0:02:57.5]}
4. e3 {[%clk 0:03:01.1]} 4... Nf6 {[%clk 0:02:57.1]} 5. Nf3 {[%clk 0:03:01.2]}
5... Nbd7 {[%clk 0:02:57.6]} 6. Bd3 {[%clk 0:03:01.3]} 6... dxc4 {[%clk
0:02:56.7]} 7. Bxc4 {[%clk 0:03:02.2]} 7... b5 {[%clk 0:02:57.3]} 8. Be2 {[%clk
0:03:02.5]} 8... Bb7 {[%clk 0:02:54.8]} 9. e4 {[%clk 0:03:02.5]} 9... b4 {[%clk
0:02:53.4]} 10. e5 {[%clk 0:03:02.6]} 10... bxc3 {[%clk 0:02:53.6]} 11. exf6
{[%clk 0:03:02.8]} 11... cxb2 {[%clk 0:02:50.1]} 12. fxg7 {[%clk 0:03:02.8]}
12... Bxg7 {[%clk 0:02:45.9]} 13. Bxb2 {[%clk 0:03:02.5]} 13... c5 {[%clk
0:02:44.2]} 14. O-O {[%clk 0:02:59.7]} 14... O-O {[%clk 0:02:44.6]} 15. Qd2
{[%clk 0:02:49.3]} 15... Rb8 {[%clk 0:02:41.5]} 16. Bc3 {[%clk 0:01:31.9]} 16...
cxd4 {[%clk 0:01:56.9]} 17. Bxd4 {[%clk 0:01:31.5]} 17... Bxf3 {[%clk
0:01:54.6]} 18. Bxg7 {[%clk 0:00:56.3]} 18... Kxg7 {[%clk 0:01:55.5]} 19. Bxf3
{[%clk 0:00:48.3]} 19... Ne5 {[%clk 0:01:55.7]} 20. Qe3 {[%clk 0:00:33.3]} 20...
Qf6 {[%clk 0:01:53.7]} 21. Be2 {[%clk 0:00:29]} 21... Rb2 {[%clk 0:01:45.1]} 22.
a4 {[%clk 0:00:27]} 22... Ng6 {[%clk 0:01:34.5]} 23. f4 {[%clk 0:00:19.9]} 23...
a5 {[%clk 0:01:30.8]} 24. g3 {[%clk 0:00:18.2]} 24... Ne7 {[%clk 0:01:25.5]} 25.
Bf3 {[%clk 0:00:17.5]} 25... Nf5 {[%clk 0:01:23.4]} 26. Qe4 {[%clk 0:00:16.7]}
26... Rd8 {[%clk 0:01:20]} 27. Rad1 {[%clk 0:00:16.7]} 27... Rd4 {[%clk
0:01:14.5]} 28. Rxd4 {[%clk 0:00:15.3]} 28... Qxd4+ {[%clk 0:01:15.4]} 29. Qxd4+
{[%clk 0:00:15.1]} 29... Nxd4 {[%clk 0:01:16.3]} 30. Bg2 {[%clk 0:00:12.8]}
30... Ra2 {[%clk 0:01:15]} 31. Rd1 {[%clk 0:00:09.5]} 31... Rxa4 {[%clk
0:01:15.3]} 32. Bf1 {[%clk 0:00:07.8]} 32... Rb4 {[%clk 0:01:11.8]} 33. Kf2
{[%clk 0:00:06.3]} 33... a4 {[%clk 0:01:09.5]} 34. Ke3 {[%clk 0:00:06.5]} 34...
a3 {[%clk 0:01:02.1]} 35. Rd2 {[%clk 0:00:04.4]} 35... Nf5+ {[%clk 0:00:54.5]}
36. Kf3 {[%clk 0:00:03.9]} 36... Rb3+ {[%clk 0:00:46.6]} 37. Kf2 {[%clk
0:00:01.9]} 37... Ne3 {[%clk 0:00:40.6]} 38. Bd3 {[%clk 0:00:01.7]} 38... Nd5
{[%clk 0:00:32]} 39. Bc4 {[%clk 0:00:01.7]} 39... Rb2 {[%clk 0:00:32.3]} 40. Ke2
{[%clk 0:00:01.7]} 40... Nc3+ {[%clk 0:00:29]} 41. Kd3 {[%clk 0:00:01.3]} 41...
Rxd2+ {[%clk 0:00:29.9]} 42. Kxd2 {[%clk 0:00:02]} 42... a2 {[%clk 0:00:30.8]}
43. Bxa2 {[%clk 0:00:01.4]} 43... Nxa2 {[%clk 0:00:31.7]} 44. Kd3 {[%clk
0:00:01.6]} 44... Nb4+ {[%clk 0:00:31.4]} 45. Ke4 {[%clk 0:00:01.3]} 45... Nd5
{[%clk 0:00:31.3]} 46. g4 {[%clk 0:00:01.6]} 46... Nf6+ {[%clk 0:00:31.2]} 0-1

[Event "Late-Titled-Tuesday-Blitz-February-13-2024"]
[Site "Chess.com"]
[Date "2024.02.13"]
[Round "3"]
[White "abeljusto"]
[Black "egnfanclub"]
[Result "0-1"]
[WhiteElo "2083"]
[BlackElo "2342"]
[TimeControl "180+1"]
[EndTime "14:28:08 PST"]
[Termination "egnfanclub won on time"]

1. d4 {[%clk 0:03:00.9]} 1... d5 {[%clk 0:02:59.7]} 2. Bf4 {[%clk 0:03:00.2]}
2... Nf6 {[%clk 0:02:59.5]} 3. e3 {[%clk 0:02:58.8]} 3... Bf5 {[%clk 0:02:59.4]}
4. c4 {[%clk 0:02:57.8]} 4... Bxb1 {[%clk 0:02:56]} 5. Rxb1 {[%clk 0:02:56.9]}
5... e6 {[%clk 0:02:56.6]} 6. b4 {[%clk 0:02:52.1]} 6... Be7 {[%clk 0:02:37.8]}
7. Nf3 {[%clk 0:02:46.1]} 7... dxc4 {[%clk 0:02:35.8]} 8. Bxc4 {[%clk
0:02:45.1]} 8... Nd5 {[%clk 0:02:35.8]} 9. Bxd5 {[%clk 0:02:04.2]} 9... Qxd5
{[%clk 0:02:29.3]} 10. Qc2 {[%clk 0:01:50.6]} 10... Nc6 {[%clk 0:02:24.1]} 11.
a3 {[%clk 0:01:44.5]} 11... O-O {[%clk 0:02:04.9]} 12. O-O {[%clk 0:01:43.5]}
12... Rac8 {[%clk 0:02:00.4]} 13. Rfc1 {[%clk 0:01:38.5]} 13... Bd6 {[%clk
0:01:12.7]} 14. Bg3 {[%clk 0:01:34.7]} 14... Bxg3 {[%clk 0:01:10.7]} 15. hxg3
{[%clk 0:01:34]} 15... f5 {[%clk 0:01:06.1]} 16. Qa4 {[%clk 0:01:26.6]} 16... a6
{[%clk 0:00:58.6]} 17. Rc5 {[%clk 0:01:12.4]} 17... Qd8 {[%clk 0:00:48.6]} 18.
Qb3 {[%clk 0:00:54.7]} 18... Qf6 {[%clk 0:00:35.4]} 19. Rbc1 {[%clk 0:00:51.3]}
19... Rf7 {[%clk 0:00:34.2]} 20. a4 {[%clk 0:00:48.8]} 20... Nd8 {[%clk
0:00:27.6]} 21. Ne5 {[%clk 0:00:39.4]} 21... Re7 {[%clk 0:00:27.5]} 22. b5
{[%clk 0:00:37.3]} 22... axb5 {[%clk 0:00:27.3]} 23. axb5 {[%clk 0:00:36.8]}
23... g5 {[%clk 0:00:24.2]} 24. f4 {[%clk 0:00:26.6]} 24... h6 {[%clk
0:00:21.4]} 25. Qc2 {[%clk 0:00:24]} 25... Kg7 {[%clk 0:00:20.4]} 26. Qe2 {[%clk
0:00:22.5]} 26... c6 {[%clk 0:00:13.1]} 27. b6 {[%clk 0:00:18.7]} 27... Nf7
{[%clk 0:00:11.1]} 28. Nxf7 {[%clk 0:00:17.5]} 28... Rxf7 {[%clk 0:00:11.5]} 29.
Qa2 {[%clk 0:00:16.9]} 29... gxf4 {[%clk 0:00:10.3]} 30. gxf4 {[%clk 0:00:15.1]}
30... Kh7 {[%clk 0:00:10.9]} 31. Re5 {[%clk 0:00:14.4]} 31... Re8 {[%clk
0:00:09.6]} 32. Rc2 {[%clk 0:00:10.4]} 32... Rg7 {[%clk 0:00:10.1]} 33. Qc4
{[%clk 0:00:07.8]} 33... Qh4 {[%clk 0:00:10.2]} 34. Qf1 {[%clk 0:00:07]} 34...
Qg3 {[%clk 0:00:09.9]} 35. Qf2 {[%clk 0:00:06.4]} 35... Qg4 {[%clk 0:00:09.3]}
36. Qf1 {[%clk 0:00:03.7]} 36... Rg6 {[%clk 0:00:09.7]} 37. Rec5 {[%clk
0:00:02.8]} 37... Reg8 {[%clk 0:00:09.9]} 38. Rf2 {[%clk 0:00:01.2]} 38... Qg3
{[%clk 0:00:09.8]} 0-1

[Event "Late-Titled-Tuesday-Blitz-February-13-2024"]
[Site "Chess.com"]
[Date "2024.02.13"]
[Round "3"]
[White "MKlose11"]
[Black "noblerone"]
[Result "1-0"]
[WhiteElo "2656"]
[BlackElo "2453"]
[TimeControl "180+1"]
[EndTime "14:28:10 PST"]
[Termination "MKlose11 won by resignation"]

1. e4 {[%clk 0:02:51.3]} 1... c5 {[%clk 0:02:59.7]} 2. Nc3 {[%clk 0:02:51.2]}
2... Nc6 {[%clk 0:02:59.4]} 3. g3 {[%clk 0:02:52.1]} 3... e6 {[%clk 0:02:58.8]}
4. Bg2 {[%clk 0:02:53]} 4... Nf6 {[%clk 0:02:58.3]} 5. d3 {[%clk 0:02:53.9]}
5... d5 {[%clk 0:02:52.4]} 6. h3 {[%clk 0:02:51.2]} 6... Be7 {[%clk 0:02:51.3]}
7. Nge2 {[%clk 0:02:50.9]} 7... O-O {[%clk 0:02:49.7]} 8. O-O {[%clk 0:02:50.6]}
8... b6 {[%clk 0:02:28.9]} 9. exd5 {[%clk 0:02:49.3]} 9... Nxd5 {[%clk
0:02:26.5]} 10. Nxd5 {[%clk 0:02:45.8]} 10... exd5 {[%clk 0:02:27.4]} 11. d4
{[%clk 0:02:46.4]} 11... Ba6 {[%clk 0:02:09.9]} 12. dxc5 {[%clk 0:02:41]} 12...
bxc5 {[%clk 0:02:09.6]} 13. Re1 {[%clk 0:02:39.4]} 13... Bxe2 {[%clk 0:01:53.2]}
14. Rxe2 {[%clk 0:02:37.3]} 14... Nd4 {[%clk 0:01:49.2]} 15. Re1 {[%clk
0:02:36.4]} 15... Bg5 {[%clk 0:01:44.1]} 16. c3 {[%clk 0:02:33.7]} 16... Bxc1
{[%clk 0:01:37.7]} 17. Rxc1 {[%clk 0:02:32.3]} 17... Nf5 {[%clk 0:01:33.2]} 18.
Qxd5 {[%clk 0:02:28.3]} 18... Qf6 {[%clk 0:01:28.7]} 19. Qxa8 {[%clk 0:02:20.6]}
19... Rxa8 {[%clk 0:01:29.6]} 20. Bxa8 {[%clk 0:02:20.5]} 20... g6 {[%clk
0:01:30.4]} 21. Be4 {[%clk 0:02:17.1]} 21... Nd6 {[%clk 0:01:28.9]} 22. b4
{[%clk 0:02:13.7]} 22... Nxe4 {[%clk 0:01:21.5]} 23. Rxe4 {[%clk 0:02:11]} 23...
cxb4 {[%clk 0:01:21.7]} 24. Rxb4 {[%clk 0:02:07.9]} 24... Qg5 {[%clk 0:01:13.7]}
25. Rbb1 {[%clk 0:02:05.5]} 25... Qc5 {[%clk 0:01:09]} 26. c4 {[%clk 0:02:05.1]}
26... a6 {[%clk 0:01:08.3]} 27. h4 {[%clk 0:02:05.5]} 27... h6 {[%clk
0:01:07.1]} 28. Rb3 {[%clk 0:02:03.3]} 28... g5 {[%clk 0:01:07.2]} 29. hxg5
{[%clk 0:02:02.6]} 29... hxg5 {[%clk 0:01:08.1]} 30. Rd3 {[%clk 0:02:02.2]}
30... Kh7 {[%clk 0:01:01.9]} 31. Rc2 {[%clk 0:01:56.2]} 31... Kg6 {[%clk
0:00:56.3]} 32. Rd5 {[%clk 0:01:55.4]} 32... Qc6 {[%clk 0:00:55.2]} 33. Re5
{[%clk 0:01:48]} 33... f6 {[%clk 0:00:48.6]} 34. Rd5 {[%clk 0:01:45.3]} 34...
Kh5 {[%clk 0:00:48]} 35. Rd4 {[%clk 0:01:37.2]} 35... Qc5 {[%clk 0:00:44.7]} 36.
Re4 {[%clk 0:01:28.5]} 36... f5 {[%clk 0:00:36.3]} 37. Re3 {[%clk 0:01:17.8]}
37... Kg4 {[%clk 0:00:36]} 38. Kg2 {[%clk 0:01:17]} 38... f4 {[%clk 0:00:32.5]}
39. f3+ {[%clk 0:01:12.6]} 39... Kf5 {[%clk 0:00:24.8]} 40. Rd3 {[%clk
0:01:07.9]} 40... Qb4 {[%clk 0:00:15.1]} 41. c5 {[%clk 0:01:01.4]} 41... Qa4
{[%clk 0:00:14.5]} 42. Rdc3 {[%clk 0:00:54.8]} 42... fxg3 {[%clk 0:00:13.4]} 43.
c6 {[%clk 0:00:52]} 43... Qh4 {[%clk 0:00:13.1]} 44. c7 {[%clk 0:00:41.2]} 44...
Qh2+ {[%clk 0:00:11.8]} 45. Kf1 {[%clk 0:00:41.6]} 45... Qh1+ {[%clk 0:00:11]}
46. Ke2 {[%clk 0:00:40.1]} 46... Qg2+ {[%clk 0:00:11.1]} 47. Kd1 {[%clk
0:00:35.5]} 47... Qf1+ {[%clk 0:00:10.9]} 48. Kd2 {[%clk 0:00:35.8]} 48... Qf2+
{[%clk 0:00:09.2]} 49. Kc1 {[%clk 0:00:35.8]} 49... Qg1+ {[%clk 0:00:07.8]} 50.
Kb2 {[%clk 0:00:35.5]} 50... Qb6+ {[%clk 0:00:08.7]} 51. Rb3 {[%clk 0:00:35.5]}
51... Qf6+ {[%clk 0:00:09.1]} 52. Rcc3 {[%clk 0:00:32.7]} 1-0

[Event "Late-Titled-Tuesday-Blitz-February-13-2024"]
[Site "Chess.com"]
[Date "2024.02.13"]
[Round "3"]
[White "yaguigor"]
[Black "AsaHoffmann"]
[Result "1-0"]
[WhiteElo "2621"]
[BlackElo "2426"]
[TimeControl "180+1"]
[EndTime "14:28:12 PST"]
[Termination "yaguigor won by resignation"]

1. d4 {[%clk 0:03:00.9]} 1... Nf6 {[%clk 0:02:59.2]} 2. c4 {[%clk 0:02:59.9]}
2... c5 {[%clk 0:02:58.8]} 3. d5 {[%clk 0:03:00.2]} 3... e5 {[%clk 0:02:58.5]}
4. Nc3 {[%clk 0:02:57.6]} 4... d6 {[%clk 0:02:58.3]} 5. e4 {[%clk 0:02:56.9]}
5... Be7 {[%clk 0:02:58]} 6. h3 {[%clk 0:02:50.9]} 6... Nbd7 {[%clk 0:02:57.3]}
7. g4 {[%clk 0:02:49.5]} 7... Nf8 {[%clk 0:02:56.9]} 8. Nge2 {[%clk 0:02:44.2]}
8... Ng6 {[%clk 0:02:55.7]} 9. Ng3 {[%clk 0:02:44.3]} 9... h6 {[%clk 0:02:53.5]}
10. Nf5 {[%clk 0:02:44.3]} 10... Bxf5 {[%clk 0:02:49.4]} 11. gxf5 {[%clk
0:02:41.4]} 11... Nh4 {[%clk 0:02:42.8]} 12. Rg1 {[%clk 0:02:40.3]} 12... Rg8
{[%clk 0:02:28.6]} 13. Be3 {[%clk 0:02:37.6]} 13... a6 {[%clk 0:02:24]} 14. Be2
{[%clk 0:02:31.5]} 14... Qa5 {[%clk 0:02:22.5]} 15. Qd2 {[%clk 0:02:26.1]} 15...
b5 {[%clk 0:02:18.3]} 16. cxb5 {[%clk 0:02:24.3]} 16... axb5 {[%clk 0:02:17.9]}
17. Bxb5+ {[%clk 0:02:23.3]} 17... Qxb5 {[%clk 0:02:08.9]} 18. Nxb5 {[%clk
0:02:21.9]} 18... Nf3+ {[%clk 0:02:08.3]} 19. Ke2 {[%clk 0:02:20.4]} 19... Nxd2
{[%clk 0:02:07.9]} 20. Bxd2 {[%clk 0:02:20.8]} 20... Kd7 {[%clk 0:02:03.2]} 21.
f3 {[%clk 0:02:18.3]} 21... Nh7 {[%clk 0:01:51]} 22. a4 {[%clk 0:02:12.6]} 22...
Bg5 {[%clk 0:01:50.6]} 23. Bxg5 {[%clk 0:01:36.9]} 23... Nxg5 {[%clk 0:01:45.2]}
24. Rg3 {[%clk 0:01:28]} 24... Nh7 {[%clk 0:01:43]} 25. b3 {[%clk 0:01:21.6]}
25... Nf6 {[%clk 0:01:42.5]} 26. h4 {[%clk 0:01:16.3]} 26... Nh5 {[%clk
0:01:41.9]} 27. Rgg1 {[%clk 0:01:16.4]} 27... Nf4+ {[%clk 0:01:41.2]} 28. Ke3
{[%clk 0:01:14.4]} 28... g6 {[%clk 0:01:36.4]} 29. fxg6 {[%clk 0:01:12.6]} 29...
fxg6 {[%clk 0:01:36.2]} 30. Rac1 {[%clk 0:01:00.6]} 30... Rgc8 {[%clk
0:01:35.3]} 31. Rc4 {[%clk 0:01:00.2]} 31... Ra5 {[%clk 0:01:31.4]} 32. Kd2
{[%clk 0:00:48.9]} 32... Rb8 {[%clk 0:01:31]} 33. Rc2 {[%clk 0:00:45.4]} 33...
Rbxb5 {[%clk 0:01:30]} 34. axb5 {[%clk 0:00:44.6]} 34... Rxb5 {[%clk 0:01:30.2]}
35. Kc3 {[%clk 0:00:44.8]} 35... Rb4 {[%clk 0:01:28]} 36. Ra2 {[%clk 0:00:44.1]}
36... Ke7 {[%clk 0:01:25.5]} 37. Ra7+ {[%clk 0:00:39.8]} 37... Kf6 {[%clk
0:01:25.4]} 38. Re1 {[%clk 0:00:38.2]} 38... Rd4 {[%clk 0:01:20.5]} 39. Re3
{[%clk 0:00:35.9]} 39... Rd1 {[%clk 0:01:15.1]} 40. Rd7 {[%clk 0:00:34.6]} 40...
Rh1 {[%clk 0:01:04.6]} 41. Rxd6+ {[%clk 0:00:33.3]} 41... Kf7 {[%clk 0:01:04.8]}
42. Rc6 {[%clk 0:00:31.7]} 42... Rxh4 {[%clk 0:01:04]} 43. Rxc5 {[%clk
0:00:31.8]} 43... Rh1 {[%clk 0:01:03.9]} 44. b4 {[%clk 0:00:31.2]} 44... h5
{[%clk 0:01:02.1]} 45. Kb2 {[%clk 0:00:26.2]} 45... Rd1 {[%clk 0:00:54.9]} 46.
b5 {[%clk 0:00:24.8]} 46... Rd4 {[%clk 0:00:50.7]} 47. b6 {[%clk 0:00:22.8]}
47... Rd3 {[%clk 0:00:40.8]} 48. Rc3 {[%clk 0:00:18.6]} 48... Rd2+ {[%clk
0:00:36.7]} 49. Rc2 {[%clk 0:00:18.7]} 49... Rd4 {[%clk 0:00:34.8]} 50. b7
{[%clk 0:00:17.2]} 50... Nd3+ {[%clk 0:00:34.1]} 51. Rxd3 {[%clk 0:00:15.2]}
51... Rb4+ {[%clk 0:00:29.8]} 52. Rb3 {[%clk 0:00:14.2]} 1-0

[Event "Late-Titled-Tuesday-Blitz-February-13-2024"]
[Site "Chess.com"]
[Date "2024.02.13"]
[Round "3"]
[White "Njal28"]
[Black "Romadk"]
[Result "1-0"]
[WhiteElo "2991"]
[BlackElo "2527"]
[TimeControl "180+1"]
[EndTime "14:28:13 PST"]
[Termination "Njal28 won by resignation"]

1. e4 {[%clk 0:03:00.9]} 1... Nf6 {[%clk 0:02:59.7]} 2. e5 {[%clk 0:03:00.7]}
2... Nd5 {[%clk 0:02:59.9]} 3. d4 {[%clk 0:03:01.6]} 3... d6 {[%clk 0:03:00.4]}
4. c4 {[%clk 0:03:01.4]} 4... Nb6 {[%clk 0:03:00.8]} 5. exd6 {[%clk 0:03:02.2]}
5... cxd6 {[%clk 0:03:01.7]} 6. Nc3 {[%clk 0:03:01.6]} 6... g6 {[%clk
0:03:02.3]} 7. a4 {[%clk 0:03:01.7]} 7... Bg7 {[%clk 0:03:01.5]} 8. a5 {[%clk
0:03:01.1]} 8... N6d7 {[%clk 0:03:00.9]} 9. Ra3 {[%clk 0:03:00.5]} 9... O-O
{[%clk 0:03:00.4]} 10. Nf3 {[%clk 0:02:54.4]} 10... Nc6 {[%clk 0:02:58.6]} 11.
d5 {[%clk 0:02:54.5]} 11... Nce5 {[%clk 0:02:58.5]} 12. Nxe5 {[%clk 0:02:42.4]}
12... Nxe5 {[%clk 0:02:59.4]} 13. Be2 {[%clk 0:02:41.7]} 13... Bf5 {[%clk
0:02:50.1]} 14. f4 {[%clk 0:02:33]} 14... Nd7 {[%clk 0:02:47.9]} 15. g4 {[%clk
0:02:30.9]} 15... Bxc3+ {[%clk 0:02:45.9]} 16. Rxc3 {[%clk 0:02:31.8]} 16... Be4
{[%clk 0:02:46.2]} 17. Rg1 {[%clk 0:02:26.1]} 17... Qxa5 {[%clk 0:02:42.1]} 18.
Be3 {[%clk 0:02:12]} 18... b5 {[%clk 0:01:45.5]} 19. Qd4 {[%clk 0:01:55.7]}
19... f5 {[%clk 0:01:35.1]} 20. gxf5 {[%clk 0:01:50.5]} 20... Bxf5 {[%clk
0:01:34.3]} 21. cxb5 {[%clk 0:01:50.8]} 21... Rac8 {[%clk 0:01:22.9]} 22. Bd2
{[%clk 0:01:48.3]} 22... Qa1+ {[%clk 0:01:17.7]} 23. Kf2 {[%clk 0:01:38.2]}
23... Qxb2 {[%clk 0:01:17.8]} 24. Rgc1 {[%clk 0:01:38.6]} 24... Nb6 {[%clk
0:00:48.1]} 25. Ke1 {[%clk 0:00:52]} 25... Qa2 {[%clk 0:00:40.3]} 26. Rxc8
{[%clk 0:00:48.1]} 26... Rxc8 {[%clk 0:00:41.2]} 27. Rxc8+ {[%clk 0:00:47]}
27... Nxc8 {[%clk 0:00:42.1]} 28. Bc3 {[%clk 0:00:46.8]} 28... Qb1+ {[%clk
0:00:36.8]} 29. Kf2 {[%clk 0:00:46.3]} 29... Kf7 {[%clk 0:00:31.7]} 30. Qg7+
{[%clk 0:00:38.3]} 30... Ke8 {[%clk 0:00:32.1]} 31. Qh8+ {[%clk 0:00:38.3]}
31... Kd7 {[%clk 0:00:32.3]} 32. Ba5 {[%clk 0:00:38.3]} 32... Nb6 {[%clk
0:00:22.7]} 33. Qb8 {[%clk 0:00:38.9]} 33... Nxd5 {[%clk 0:00:16.3]} 34. Qxa7+
{[%clk 0:00:33]} 34... Ke6 {[%clk 0:00:16.8]} 35. Qd4 {[%clk 0:00:23.5]} 35...
Qe4 {[%clk 0:00:14.8]} 36. Qxe4+ {[%clk 0:00:21.8]} 36... Bxe4 {[%clk
0:00:15.7]} 37. b6 {[%clk 0:00:22.6]} 37... Nxf4 {[%clk 0:00:15.4]} 38. Bc4+
{[%clk 0:00:22.9]} 38... Kf5 {[%clk 0:00:12.5]} 39. Ba6 {[%clk 0:00:22.3]} 39...
Nh3+ {[%clk 0:00:05.2]} 40. Ke3 {[%clk 0:00:22.9]} 40... Ng5 {[%clk 0:00:02.3]}
41. h4 {[%clk 0:00:19.1]} 41... Ne6 {[%clk 0:00:01.3]} 42. Bc8 {[%clk
0:00:19.9]} 42... Kf6 {[%clk 0:00:01.2]} 43. Bxe6 {[%clk 0:00:18.2]} 43... Kxe6
{[%clk 0:00:02.1]} 44. Kxe4 {[%clk 0:00:18.8]} 44... d5+ {[%clk 0:00:02.3]} 45.
Kd4 {[%clk 0:00:18.8]} 45... Kd7 {[%clk 0:00:03.2]} 46. b7 {[%clk 0:00:19.1]}
46... Kc6 {[%clk 0:00:02.5]} 47. b8=Q {[%clk 0:00:19.3]} 47... e5+ {[%clk
0:00:03.4]} 48. Qxe5 {[%clk 0:00:19.6]} 1-0

[Event "Late-Titled-Tuesday-Blitz-February-13-2024"]
[Site "Chess.com"]
[Date "2024.02.13"]
[Round "3"]
[White "tdf98pantani"]
[Black "JackRodgers"]
[Result "0-1"]
[WhiteElo "2673"]
[BlackElo "2511"]
[TimeControl "180+1"]
[EndTime "14:28:13 PST"]
[Termination "JackRodgers won by resignation"]

1. d4 {[%clk 0:02:59.1]} 1... Nf6 {[%clk 0:03:00.2]} 2. c4 {[%clk 0:02:59]} 2...
c5 {[%clk 0:03:00.5]} 3. d5 {[%clk 0:02:58]} 3... e5 {[%clk 0:03:01]} 4. Nc3
{[%clk 0:02:57.3]} 4... d6 {[%clk 0:03:01.4]} 5. e4 {[%clk 0:02:56.8]} 5... Be7
{[%clk 0:03:01.9]} 6. g3 {[%clk 0:02:56.2]} 6... h5 {[%clk 0:03:01.1]} 7. Bh3
{[%clk 0:02:52.9]} 7... Nbd7 {[%clk 0:03:00.2]} 8. Nf3 {[%clk 0:02:51.1]} 8...
a6 {[%clk 0:02:54.5]} 9. a4 {[%clk 0:02:49.3]} 9... b6 {[%clk 0:02:50]} 10. Qc2
{[%clk 0:02:42.3]} 10... Ng4 {[%clk 0:02:49.9]} 11. Ng1 {[%clk 0:02:35.1]} 11...
Bg5 {[%clk 0:02:43.5]} 12. f3 {[%clk 0:02:28]} 12... Bxc1 {[%clk 0:02:36.6]} 13.
Qxc1 {[%clk 0:02:27.7]} 13... Ngf6 {[%clk 0:02:29.5]} 14. Nge2 {[%clk
0:02:27.2]} 14... h4 {[%clk 0:02:27.4]} 15. Qg5 {[%clk 0:02:25.3]} 15... Kf8
{[%clk 0:02:21.6]} 16. O-O-O {[%clk 0:02:13.3]} 16... Rh5 {[%clk 0:02:12.5]} 17.
Qe3 {[%clk 0:02:11.8]} 17... b5 {[%clk 0:01:51.6]} 18. axb5 {[%clk 0:02:05.5]}
18... axb5 {[%clk 0:01:52.5]} 19. Nxb5 {[%clk 0:02:05]} 19... Ba6 {[%clk
0:01:35.9]} 20. Nec3 {[%clk 0:01:55.8]} 20... Bxb5 {[%clk 0:01:21.5]} 21. Nxb5
{[%clk 0:01:55.6]} 21... Ra1+ {[%clk 0:01:19.8]} 22. Kc2 {[%clk 0:01:55.6]}
22... Rxd1 {[%clk 0:01:20]} 23. Kxd1 {[%clk 0:01:55.7]} 23... Qa5 {[%clk
0:01:15]} 24. g4 {[%clk 0:01:38.1]} 24... Rh8 {[%clk 0:00:54.7]} 25. g5 {[%clk
0:01:33]} 25... Nb6 {[%clk 0:00:27.4]} 26. gxf6 {[%clk 0:00:51.8]} 26... Nxc4
{[%clk 0:00:27.7]} 27. fxg7+ {[%clk 0:00:52]} 27... Kxg7 {[%clk 0:00:28.6]} 28.
Rg1+ {[%clk 0:00:44.7]} 28... Kf8 {[%clk 0:00:28.8]} 29. Qg5 {[%clk 0:00:44.3]}
29... Qa1+ {[%clk 0:00:18.5]} 30. Qc1 {[%clk 0:00:42.3]} 30... Qa4+ {[%clk
0:00:18.5]} 31. Ke2 {[%clk 0:00:37.1]} 31... Qxb5 {[%clk 0:00:18.8]} 32. Kf2
{[%clk 0:00:37.2]} 32... Nxb2 {[%clk 0:00:17.6]} 33. Bf1 {[%clk 0:00:35.3]}
33... c4 {[%clk 0:00:14.6]} 34. Qe3 {[%clk 0:00:29.6]} 34... h3 {[%clk
0:00:06.5]} 35. Be2 {[%clk 0:00:25.1]} 35... Nd3+ {[%clk 0:00:06.1]} 36. Bxd3
{[%clk 0:00:20.8]} 36... cxd3 {[%clk 0:00:07]} 37. Rd1 {[%clk 0:00:14]} 37...
Rg8 {[%clk 0:00:07.3]} 38. Qxd3 {[%clk 0:00:10.3]} 38... Rg2+ {[%clk 0:00:07.2]}
39. Kf1 {[%clk 0:00:10.6]} 39... Qc5 {[%clk 0:00:06.6]} 0-1